bitfinex/quotes_BTCUSD_20251102
["timestamp","ask_amount","ask_price","bid_price","bid_amount"]
[1762053344005,1.64751876,110230.0,110220.0,8.784e-05]
[1762053348005,2.039627,110230.0,110220.0,8.784e-05]
[1762053348246,5.08220975,110230.0,110220.0,8.784e-05]
[1762053348457,5.22814282,110230.0,110220.0,8.784e-05]
[1762053348665,5.22914282,110230.0,110220.0,8.784e-05]
[1762053348876,5.22814282,110230.0,110220.0,8.784e-05]
[1762053349535,5.22914282,110230.0,110220.0,8.784e-05]
[1762053349747,5.22814282,110230.0,110220.0,8.784e-05]
[1762053349964,5.22914282,110230.0,110220.0,8.784e-05]
[1762053351477,5.60182361,110230.0,110220.0,8.784e-05]
[1762053351630,6.39515805,110230.0,110220.0,8.784e-05]
[1762053351857,6.44414992,110230.0,110220.0,8.784e-05]
[1762053352460,6.39515805,110230.0,110220.0,8.784e-05]
[1762053352665,6.39315805,110230.0,110220.0,8.784e-05]
[1762053352841,6.39815805,110230.0,110220.0,8.784e-05]
[1762053353043,6.39715805,110230.0,110220.0,8.784e-05]
[1762053353484,6.40415805,110230.0,110220.0,8.784e-05]
[1762053354524,6.42865113,110230.0,110220.0,8.784e-05]
[1762053355928,5.25232641,110230.0,110220.0,8.784e-05]
[1762053361347,5.25228045,110230.0,110220.0,8.784e-05]
[1762053361831,5.23804666,110230.0,110220.0,8.784e-05]
[1762053362044,5.6301549,110230.0,110220.0,8.784e-05]
[1762053364365,6.42437192,110230.0,110220.0,8.784e-05]
[1762053365048,6.4386072,110230.0,110220.0,8.784e-05]
[1762053373316,6.41411412,110230.0,110220.0,8.784e-05]
[1762053375418,6.46310599,110230.0,110220.0,8.784e-05]
[1762053378385,6.43044475,110230.0,110220.0,8.784e-05]
[1762053378805,6.43944475,110230.0,110220.0,8.784e-05]
[1762053379661,6.41602524,110230.0,110220.0,8.784e-05]
[1762053380012,6.39614364,110230.0,110220.0,8.784e-05]
[1762053380211,6.41318335,110230.0,110220.0,8.784e-05]
[1762053380837,6.39614364,110230.0,110220.0,8.784e-05]
[1762053382109,6.41319145,110230.0,110220.0,8.784e-05]
[1762053382850,6.41603361,110230.0,110220.0,8.784e-05]
[1762053385486,5.24029851,110230.0,110220.0,8.784e-05]
[1762053388472,4.84799373,110230.0,110220.0,8.784e-05]
[1762053391068,4.84799512,110230.0,110220.0,8.784e-05]
[1762053391451,4.84799508,110230.0,110220.0,8.784e-05]
[1762053392448,4.82836046,110230.0,110220.0,8.784e-05]
[1762053392623,4.8480011,110230.0,110220.0,8.784e-05]
[1762053396628,4.83700111,110230.0,110220.0,8.784e-05]
[1762053396842,4.86973469,110230.0,110220.0,8.784e-05]
[1762053397078,4.84345923,110230.0,110220.0,8.784e-05]
[1762053397754,4.84245923,110230.0,110220.0,8.784e-05]
[1762053397990,4.84345923,110230.0,110220.0,8.784e-05]
[1762053399227,4.79346736,110230.0,110220.0,8.784e-05]
[1762053399420,4.79446736,110230.0,110220.0,8.784e-05]
[1762053399897,4.79346736,110230.0,110220.0,8.784e-05]
[1762053403308,4.79446736,110230.0,110220.0,8.784e-05]
[1762053405385,4.79346736,110230.0,110220.0,8.784e-05]
[1762053407862,4.79345369,110230.0,110220.0,8.784e-05]
[1762053408258,4.78445369,110230.0,110220.0,8.784e-05]
[1762053408463,4.71818109,110230.0,110220.0,8.784e-05]
[1762053408699,4.67121223,110230.0,110220.0,8.784e-05]
[1762053409795,4.66621223,110230.0,110220.0,8.784e-05]
[1762053410148,4.66821223,110230.0,110220.0,8.784e-05]
[1762053410991,4.66121223,110230.0,110220.0,8.784e-05]
[1762053411170,4.66421223,110230.0,110220.0,8.784e-05]
[1762053411612,4.66413058,110230.0,110220.0,8.784e-05]
[1762053412019,4.67836446,110230.0,110220.0,8.784e-05]
[1762053413602,4.68736446,110230.0,110220.0,8.784e-05]
[1762053422644,4.68836446,110230.0,110220.0,8.784e-05]
[1762053422850,4.71209804,110230.0,110220.0,8.784e-05]
[1762053423077,4.73937883,110230.0,110220.0,8.784e-05]
[1762053428270,4.74837883,110230.0,110220.0,8.784e-05]
[1762053437270,4.73937883,110230.0,110220.0,8.784e-05]
[1762053440421,4.73837883,110230.0,110220.0,8.784e-05]
[1762053441307,4.735537,110230.0,110220.0,8.784e-05]
[1762053441623,4.73837857,110230.0,110220.0,8.784e-05]
[1762053442745,4.74737857,110230.0,110220.0,8.784e-05]
[1762053444016,4.32234021,110230.0,110220.0,8.784e-05]
[1762053447382,0.93003543,110230.0,110220.0,8.784e-05]
[1762053447600,1.68964881,110230.0,110220.0,8.784e-05]
[1762053447967,0.90550213,110230.0,110220.0,8.784e-05]
[1762053448163,1.68964881,110230.0,110220.0,8.784e-05]
[1762053475881,1.68680724,110230.0,110220.0,8.784e-05]
[1762053476080,1.68964858,110230.0,110220.0,8.784e-05]
[1762053479340,1.78045448,110230.0,110220.0,8.784e-05]
[1762053481312,1.78145448,110230.0,110220.0,8.784e-05]
[1762053481626,4.80498778,110230.0,110220.0,8.784e-05]
[1762053482016,4.80598778,110230.0,110220.0,8.784e-05]
[1762053482223,4.80498778,110230.0,110220.0,8.784e-05]
[1762053482620,4.80598778,110230.0,110220.0,8.784e-05]
[1762053483103,4.80498778,110230.0,110220.0,8.784e-05]
[1762053483395,4.80598778,110230.0,110220.0,8.784e-05]
[1762053483637,4.80498778,110230.0,110220.0,8.784e-05]
[1762053483842,4.80598778,110230.0,110220.0,8.784e-05]
[1762053484152,4.7907539,110230.0,110220.0,8.784e-05]
[1762053484363,4.7917539,110230.0,110220.0,8.784e-05]
[1762053486552,4.7907539,110230.0,110220.0,8.784e-05]
[1762053487480,4.79075407,110230.0,110220.0,8.784e-05]
[1762053488003,5.17482741,110230.0,110220.0,8.784e-05]
[1762053488421,5.17382741,110230.0,110220.0,8.784e-05]
[1762053488769,5.17482741,110230.0,110220.0,8.784e-05]
[1762053488975,5.17382741,110230.0,110220.0,8.784e-05]
[1762053489883,5.17482741,110230.0,110220.0,8.784e-05]
[1762053490286,5.17382741,110230.0,110220.0,8.784e-05]
[1762053490606,5.17482741,110230.0,110220.0,8.784e-05]
[1762053491031,5.17382741,110230.0,110220.0,8.784e-05]
[1762053491801,5.18282741,110230.0,110220.0,8.784e-05]
[1762053492012,5.21549362,110230.0,110220.0,8.784e-05]
[1762053492358,5.23998878,110230.0,110220.0,8.784e-05]
[1762053494279,5.21652285,110230.0,110220.0,8.784e-05]
[1762053494890,4.79171593,110230.0,110220.0,8.784e-05]
[1762053496261,4.79167198,110230.0,110220.0,8.784e-05]
[1762053496938,5.18374532,110230.0,110220.0,8.784e-05]
[1762053497695,5.19797985,110230.0,110220.0,8.784e-05]
[1762053497937,4.80590651,110230.0,110220.0,8.784e-05]
[1762053498145,4.80490651,110230.0,110220.0,8.784e-05]
[1762053499300,4.80590651,110230.0,110220.0,8.784e-05]
[1762053500163,4.02175983,110230.0,110220.0,8.784e-05]
[1762053500372,4.80490651,110230.0,110220.0,8.784e-05]
[1762053503335,4.78505946,110230.0,110220.0,8.784e-05]
[1762053503531,4.787901,110230.0,110220.0,8.784e-05]
[1762053503738,4.8020667,110230.0,110220.0,8.784e-05]
[1762053503976,4.787901,110230.0,110220.0,8.784e-05]
[1762053504178,4.78505946,110230.0,110220.0,8.784e-05]
[1762053504408,4.787901,110230.0,110220.0,8.784e-05]
[1762053504876,4.78505946,110230.0,110220.0,8.784e-05]
[1762053505082,4.80490861,110230.0,110220.0,8.784e-05]
[1762053505684,1.32202937,110230.0,110220.0,8.784e-05]
[1762053505885,1.24719905,110230.0,110220.0,8.784e-05]
[1762053506093,1.20529144,110230.0,110220.0,0.01382784]
[1762053506295,1.18566447,110230.0,110220.0,0.04635471]
[1762053506536,1.21900521,110230.0,110220.0,0.04635471]
[1762053507016,1.21700521,110230.0,110220.0,0.04635471]
[1762053507214,1.21400521,110230.0,110220.0,0.04635471]
[1762053507359,1.21400521,110230.0,110220.0,0.05035471]
[1762053509379,1.18591054,110230.0,110220.0,0.06409471]
[1762053512896,1.18591054,110230.0,110220.0,0.03156784]
[1762053514250,1.19274054,110230.0,110220.0,0.01782784]
[1762053517460,1.20488054,110230.0,110220.0,0.01782784]
[1762053519679,1.18905054,110230.0,110220.0,0.01782784]
[1762053520683,1.20488054,110230.0,110220.0,0.01782784]
[1762053527591,1.18905054,110230.0,110220.0,0.04893999]
[1762053527791,1.17691054,110230.0,110220.0,0.06267999]
[1762053529842,1.17691054,110230.0,110220.0,0.03156784]
[1762053530046,1.17691054,110230.0,110220.0,0.01782784]
[1762053534286,1.17691054,110230.0,110220.0,0.03156784]
[1762053534485,1.17691054,110230.0,110220.0,0.01782784]
[1762053535155,1.19274054,110230.0,110220.0,0.01782784]
[1762053536657,1.16545975,110230.0,110220.0,0.01782784]
[1762053538387,0.5214388,110230.0,110220.0,0.26228078]
[1762053538750,0.94962975,110230.0,110220.0,0.01782784]
[1762053539491,1.00222975,110230.0,110220.0,0.00408784]
[1762053539933,1.00222975,110230.0,110220.0,0.01782784]
[1762053541032,0.97800975,110230.0,110220.0,0.01782784]
[1762053545071,1.00222975,110230.0,110220.0,0.00408784]
[1762053545276,1.02467867,110230.0,110220.0,0.00408784]
[1762053545683,1.05195272,110230.0,110220.0,0.00408784]
[1762053546077,1.05195272,110230.0,110220.0,8.784e-05]
[1762053546291,1.05295272,110230.0,110220.0,8.784e-05]
[1762053546661,1.05395272,110230.0,110220.0,8.784e-05]
[1762053546849,1.05295272,110230.0,110220.0,8.784e-05]
[1762053547188,1.05395272,110230.0,110220.0,8.784e-05]
[1762053548401,1.05395285,110230.0,110220.0,8.784e-05]
[1762053549044,4.44596152,110230.0,110220.0,8.784e-05]
[1762053549277,4.46297733,110230.0,110220.0,8.784e-05]
[1762053550485,4.46397733,110230.0,110220.0,8.784e-05]
[1762053552194,4.46297733,110230.0,110220.0,8.784e-05]
[1762053552613,4.46397733,110230.0,110220.0,8.784e-05]
[1762053552830,4.46297733,110230.0,110220.0,8.784e-05]
[1762053553268,4.46397733,110230.0,110220.0,8.784e-05]
[1762053554072,4.46297733,110230.0,110220.0,8.784e-05]
[1762053554502,4.46397733,110230.0,110220.0,8.784e-05]
[1762053554723,4.46297733,110230.0,110220.0,8.784e-05]
[1762053554931,4.44596152,110230.0,110220.0,8.784e-05]
[1762053561476,4.46295842,110230.0,110220.0,8.784e-05]
[1762053565184,4.44596152,110230.0,110220.0,8.784e-05]
[1762053567992,4.44696152,110230.0,110220.0,8.784e-05]
[1762053568230,4.46296055,110230.0,110220.0,8.784e-05]
[1762053568865,4.46396055,110230.0,110220.0,8.784e-05]
[1762053569417,4.46423423,110230.0,110220.0,8.784e-05]
[1762053573105,4.46323423,110230.0,110220.0,8.784e-05]
[1762053573315,4.85537974,110230.0,110220.0,8.784e-05]
[1762053573517,4.8898749,110230.0,110220.0,8.784e-05]
[1762053574312,4.8878749,110230.0,110220.0,8.784e-05]
[1762053574513,4.8908749,110230.0,110220.0,8.784e-05]
[1762053574775,4.8928749,110230.0,110220.0,8.784e-05]
[1762053579250,4.89285002,110230.0,110220.0,8.784e-05]
[1762053579973,4.89285047,110230.0,110220.0,8.784e-05]
[1762053583073,4.88785047,110230.0,110220.0,8.784e-05]
[1762053584563,4.89785046,110230.0,110220.0,8.784e-05]
[1762053584722,4.93058404,110230.0,110220.0,8.784e-05]
[1762053584971,4.93184852,110230.0,110220.0,8.784e-05]
[1762053586359,4.89911494,110230.0,110220.0,8.784e-05]
[1762053590975,4.9133494,110230.0,110220.0,8.784e-05]
[1762053598759,4.94608298,110230.0,110220.0,8.784e-05]
[1762053599136,4.9133494,110230.0,110220.0,8.784e-05]
[1762053599335,4.94608298,110230.0,110220.0,8.784e-05]
[1762053604628,4.93184852,110230.0,110220.0,8.784e-05]
[1762053607689,4.94608298,110230.0,110220.0,8.784e-05]
[1762053608318,4.92158782,110230.0,110220.0,8.784e-05]
[1762053617987,4.90735336,110230.0,110220.0,8.784e-05]
[1762053619897,4.95634523,110230.0,110220.0,8.784e-05]
[1762053621056,4.97098302,110230.0,110220.0,8.784e-05]
[1762053621261,4.93824944,110230.0,110220.0,8.784e-05]
[1762053621441,5.37725059,110230.0,110220.0,8.784e-05]
[1762053622318,4.98510508,110230.0,110220.0,8.784e-05]
[1762053622524,4.99410508,110230.0,110220.0,8.784e-05]
[1762053624306,5.38625059,110230.0,110220.0,8.784e-05]
[1762053624810,5.38325059,110230.0,110220.0,8.784e-05]
[1762053624961,5.38125059,110230.0,110220.0,8.784e-05]
[1762053625487,5.38525059,110230.0,110220.0,8.784e-05]
[1762053626102,6.16954161,110230.0,110220.0,8.784e-05]
[1762053626419,6.14192081,110230.0,110220.0,8.784e-05]
[1762053626853,4.96048428,110230.0,110220.0,8.784e-05]
[1762053627048,4.96548428,110230.0,110220.0,8.784e-05]
[1762053629364,4.94851013,110230.0,110220.0,8.784e-05]
[1762053629574,4.96549083,110230.0,110220.0,8.784e-05]
[1762053629779,5.20959083,110230.0,110220.0,8.784e-05]
[1762053631424,4.817782,110230.0,110220.0,8.784e-05]
[1762053636164,4.808782,110230.0,110220.0,8.784e-05]
[1762053636418,4.80873292,110230.0,110220.0,8.784e-05]
[1762053636980,4.82296826,110230.0,110220.0,8.784e-05]
[1762053637172,4.80873292,110230.0,110220.0,8.784e-05]
[1762053638038,4.81769243,110230.0,110220.0,8.784e-05]
[1762053639813,4.81768999,110230.0,110220.0,8.784e-05]
[1762053641395,4.79409269,110230.0,110220.0,8.784e-05]
[1762053644073,4.82669471,110230.0,110220.0,8.784e-05]
[1762053646329,4.79409269,110230.0,110220.0,8.784e-05]
[1762053648921,4.88979269,110230.0,110220.0,8.784e-05]
[1762053649110,4.79409269,110230.0,110220.0,8.784e-05]
[1762053650582,4.80832776,110230.0,110220.0,8.784e-05]
[1762053651017,4.79409269,110230.0,110220.0,8.784e-05]
[1762053654162,4.80832776,110230.0,110220.0,8.784e-05]
[1762053655302,4.8083442,110230.0,110220.0,8.784e-05]
[1762053660493,4.80834492,110230.0,110220.0,8.784e-05]
[1762053662584,4.77752074,110230.0,110220.0,8.784e-05]
[1762053662794,4.76752075,110230.0,110220.0,8.784e-05]
[1762053663008,4.80270303,110230.0,110220.0,8.784e-05]
[1762053663177,4.75371116,110230.0,110220.0,8.784e-05]
[1762053663540,4.75471116,110230.0,110220.0,8.784e-05]
[1762053663746,4.75371116,110230.0,110220.0,8.784e-05]
[1762053663956,4.75471116,110230.0,110220.0,8.784e-05]
[1762053664147,4.75470826,110230.0,110220.0,8.784e-05]
[1762053664385,4.75370826,110230.0,110220.0,8.784e-05]
[1762053664586,4.74047319,110230.0,110220.0,8.784e-05]
[1762053664997,4.73947319,110230.0,110220.0,8.784e-05]
[1762053665217,4.74047319,110230.0,110220.0,8.784e-05]
[1762053666438,4.76494499,110230.0,110220.0,8.784e-05]
[1762053668010,4.7791791,110230.0,110220.0,8.784e-05]
[1762053669226,4.7781791,110230.0,110220.0,8.784e-05]
[1762053669833,4.7791791,110230.0,110220.0,8.784e-05]
[1762053670041,4.7781791,110230.0,110220.0,8.784e-05]
[1762053670259,4.7791791,110230.0,110220.0,8.784e-05]
[1762053673135,4.7701791,110230.0,110220.0,8.784e-05]
[1762053677571,4.77017599,110230.0,110220.0,8.784e-05]
[1762053677928,4.77917599,110230.0,110220.0,8.784e-05]
[1762053678603,4.76494188,110230.0,110220.0,8.784e-05]
[1762053681265,4.74047008,110230.0,110220.0,8.784e-05]
[1762053681734,4.75470456,110230.0,110220.0,8.784e-05]
[1762053684821,4.75470728,110230.0,110220.0,8.784e-05]
[1762053685571,4.73487353,110230.0,110220.0,8.784e-05]
[1762053685985,4.75186628,110230.0,110220.0,8.784e-05]
[1762053686210,4.73487353,110230.0,110220.0,8.784e-05]
[1762053688190,4.75470956,110230.0,110220.0,8.784e-05]
[1762053692170,4.80370655,110230.0,110220.0,8.784e-05]
[1762053693044,4.81370654,110230.0,110220.0,8.784e-05]
[1762053693254,5.23061784,110230.0,110220.0,8.784e-05]
[1762053693465,5.2306119,110230.0,110220.0,8.784e-05]
[1762053703414,5.23061385,110230.0,110220.0,8.784e-05]
[1762053716890,5.22161385,110230.0,110220.0,8.784e-05]
[1762053717659,5.23957467,110230.0,110220.0,8.784e-05]
[1762053721412,5.23957498,110230.0,110220.0,8.784e-05]
[1762053721838,5.24857498,110230.0,110220.0,8.784e-05]
[1762053731542,5.24857917,110230.0,110220.0,8.784e-05]
[1762053732141,5.23957917,110230.0,110220.0,8.784e-05]
[1762053736965,5.24857917,110230.0,110220.0,8.784e-05]
[1762053737782,5.64089104,110230.0,110220.0,8.784e-05]
[1762053737989,5.60825889,110230.0,110220.0,8.784e-05]
[1762053739055,6.39288263,110230.0,110220.0,8.784e-05]
[1762053742685,4.03901141,110230.0,110220.0,1e-08]
[1762053743692,6.39288263,110230.0,110220.0,1e-08]
[1762053746116,6.38388263,110230.0,110220.0,1e-08]
[1762053747236,6.38387204,110230.0,110220.0,1e-08]
[1762053749307,6.39287204,110230.0,110220.0,1e-08]
[1762053753379,5.21596586,110230.0,110220.0,1e-08]
[1762053769641,5.31169586,110230.0,110220.0,1e-08]
[1762053769843,5.21596586,110230.0,110220.0,1e-08]
[1762053778554,4.82364418,110230.0,110220.0,1e-08]
[1762053780485,4.8317045,110230.0,110220.0,1e-08]
[1762053780707,4.99552222,110230.0,110220.0,1e-08]
[1762053781122,5.0317045,110230.0,110220.0,1e-08]
[1762053787740,4.98271263,110230.0,110220.0,1e-08]
[1762053790537,5.00719348,110230.0,110220.0,1e-08]
[1762053794657,4.15114785,110230.0,110220.0,0.01374001]
[1762053794856,4.48243176,110230.0,110220.0,0.01374001]
[1762053795066,4.92707572,110230.0,110220.0,0.01374001]
[1762053795272,4.93841572,110230.0,110220.0,0.01374001]
[1762053795479,4.93341572,110230.0,110220.0,0.01374001]
[1762053795698,4.95725572,110230.0,110220.0,0.01374001]
[1762053795900,4.95525572,110230.0,110220.0,1e-08]
[1762053796315,4.95625572,110230.0,110220.0,1e-08]
[1762053799771,4.71215572,110230.0,110220.0,1e-08]
[1762053800752,4.71315572,110230.0,110220.0,1e-08]
[1762053801368,4.7367427,110230.0,110220.0,1e-08]
[1762053801579,4.77040047,110230.0,110220.0,1e-08]
[1762053805119,4.74591962,110230.0,110220.0,1e-08]
[1762053808245,4.74591965,110230.0,110220.0,1e-08]
[1762053809292,4.72133267,110230.0,110220.0,1e-08]
[1762053815554,5.11348311,110230.0,110220.0,1e-08]
[1762053818053,5.11349201,110230.0,110220.0,1e-08]
[1762053819100,5.10449201,110230.0,110220.0,1e-08]
[1762053823228,5.10449174,110230.0,110220.0,1e-08]
[1762053824192,5.11349174,110230.0,110220.0,1e-08]
[1762053829688,5.09648787,110230.0,110220.0,1e-08]
[1762053829903,5.11349568,110230.0,110220.0,1e-08]
[1762053830732,5.11248568,110230.0,110220.0,1e-08]
[1762053831106,5.10348568,110230.0,110220.0,1e-08]
[1762053836118,5.11248568,110230.0,110220.0,1e-08]
[1762053836274,5.13697903,110230.0,110220.0,1e-08]
[1762053844116,0.75767048,110200.0,110190.0,0.00646]
[1762053844343,0.21768695,110190.0,110180.0,0.01068082]
[1762053844566,0.21768695,110190.0,110180.0,0.00430879]
[1762053844567,1.44436075,110190.0,110180.0,0.00430879]
[1762053844762,4.44436075,110190.0,110180.0,0.00430879]
[1762053845010,4.05209615,110190.0,110180.0,0.00430879]
[1762053846088,4.05209615,110190.0,110180.0,0.00630879]
[1762053846595,4.78436075,110190.0,110180.0,0.00630879]
[1762053846814,4.39209615,110190.0,110180.0,0.00630879]
[1762053847042,4.78436075,110190.0,110180.0,0.01230879]
[1762053847272,4.98536075,110190.0,110180.0,0.01230879]
[1762053847499,4.98436075,110190.0,110180.0,0.01230879]
[1762053855086,4.9847425,110190.0,110180.0,0.01230879]
[1762053855719,4.9857425,110190.0,110180.0,0.01230879]
[1762053855968,5.01032953,110190.0,110180.0,0.01230879]
[1762053856182,5.03271786,110190.0,110180.0,0.01230879]
[1762053856398,5.06000975,110190.0,110180.0,0.01230879]
[1762053856813,5.06000975,110190.0,110180.0,0.00630879]
[1762053857188,5.06100975,110190.0,110180.0,0.00430879]
[1762053857389,5.04146378,110190.0,110180.0,0.00430879]
[1762053857612,5.06200333,110190.0,110180.0,0.00430879]
[1762053858015,5.07624169,110190.0,110180.0,0.00430879]
[1762053858216,5.07339933,110190.0,110180.0,0.00430879]
[1762053858431,5.0488123,110190.0,110180.0,0.00430879]
[1762053863204,5.03457394,110190.0,110180.0,0.00430879]
[1762053867422,5.03741643,110190.0,110180.0,0.00430879]
[1762053872408,5.05439652,110190.0,110180.0,0.00430879]
[1762053875360,4.66259996,110190.0,110180.0,0.00430879]
[1762053882186,4.83899996,110190.0,110180.0,0.02450879]
[1762053882390,4.81170807,110190.0,110180.0,0.02450879]
[1762053882742,4.81270807,110190.0,110180.0,0.02450879]
[1762053883464,4.83734803,110190.0,110180.0,0.02450879]
[1762053884506,4.83634803,110190.0,110180.0,0.02450879]
[1762053884760,4.83734803,110190.0,110180.0,0.02450879]
[1762053884979,4.81170803,110190.0,110180.0,0.02450879]
[1762053885803,4.83634803,110190.0,110180.0,0.01076879]
[1762053893569,4.83640867,110190.0,110180.0,0.01076879]
[1762053893898,4.83640864,110190.0,110180.0,0.01076879]
[1762053900733,4.83740864,110190.0,110180.0,0.01076879]
[1762053901623,4.83640864,110190.0,110180.0,0.01076879]
[1762053904009,4.61176864,110190.0,110180.0,0.02450879]
[1762053904261,4.63638864,110190.0,110180.0,0.02450879]
[1762053904474,4.63638864,110190.0,110180.0,0.01076879]
[1762053919312,4.63638864,110190.0,110180.0,0.00430879]
[1762053919516,4.63738864,110190.0,110180.0,0.00430879]
[1762053920142,4.63638864,110190.0,110180.0,0.00430879]
[1762053920839,4.63738864,110190.0,110180.0,0.00430879]
[1762053921091,4.63638864,110190.0,110180.0,0.00430879]
[1762053924859,4.64538864,110190.0,110180.0,0.00430879]
[1762053928258,4.64542711,110190.0,110180.0,0.00430879]
[1762053937444,4.64531623,110190.0,110180.0,0.00430879]
[1762053948994,4.6453246,110190.0,110180.0,0.00430879]
[1762053950050,4.6363246,110190.0,110180.0,0.00430879]
[1762053955358,4.6453246,110190.0,110180.0,0.00430879]
[1762053958438,4.6726143,110190.0,110180.0,0.00430879]
[1762053959391,4.6726171,110190.0,110180.0,0.00430879]
[1762053963263,4.6636171,110190.0,110180.0,0.00430879]
[1762053968438,4.6726171,110190.0,110180.0,0.00430879]
[1762053989129,5.06506028,110190.0,110180.0,0.00430879]
[1762053997529,4.67363628,110190.0,110180.0,0.00430879]
[1762053997736,4.67263628,110190.0,110180.0,0.00430879]
[1762053997937,4.67363628,110190.0,110180.0,0.00430879]
[1762053999062,4.66463628,110190.0,110180.0,0.00430879]
[1762053999765,4.66363628,110190.0,110180.0,0.00430879]
[1762053999977,4.66463628,110190.0,110180.0,0.00430879]
[1762054000724,4.66363628,110190.0,110180.0,0.00430879]
[1762054000930,4.66463628,110190.0,110180.0,0.00430879]
[1762054003023,4.66363628,110190.0,110180.0,0.00430879]
[1762054004043,4.67263628,110190.0,110180.0,0.00430879]
[1762054006900,4.65660655,110190.0,110180.0,0.00430879]
[1762054007110,4.67263375,110190.0,110180.0,0.00430879]
[1762054022142,3.86310821,110190.0,110180.0,0.02450879]
[1762054022364,1.22828098,110190.0,110180.0,0.03824879]
[1762054022589,1.60370655,110190.0,110180.0,0.05115426]
[1762054022800,0.81880101,110190.0,110180.0,0.05115426]
[1762054023015,1.60370655,110190.0,110180.0,0.05115426]
[1762054023883,1.60270655,110190.0,110180.0,0.05115426]
[1762054024097,1.60170655,110190.0,110180.0,0.05115426]
[1762054024320,1.57926394,110190.0,110180.0,0.06015426]
[1762054024530,1.57926394,110190.0,110180.0,0.04724879]
[1762054028835,1.57026394,110190.0,110180.0,0.04724879]
[1762054030364,1.57026394,110190.0,110180.0,0.0654009]
[1762054032402,1.57026394,110190.0,110180.0,0.04724879]
[1762054033501,0.7853584,110190.0,110180.0,0.04724879]
[1762054033685,1.57026394,110190.0,110180.0,0.04724879]
[1762054034817,1.57026394,110190.0,110180.0,0.08193676]
[1762054037787,1.54297424,110190.0,110180.0,0.08193676]
[1762054042522,1.57026062,110190.0,110180.0,0.08193676]
[1762054045830,1.57026062,110190.0,110180.0,0.04724879]
[1762054046673,1.57026062,110190.0,110180.0,0.03350879]
[1762054046674,1.58586062,110190.0,110180.0,0.03350879]
[1762054047618,1.57026062,110190.0,110180.0,0.03050879]
[1762054047820,1.57026062,110190.0,110180.0,0.02550879]
[1762054048440,1.57026062,110190.0,110180.0,0.02850879]
[1762054059424,1.57009876,110190.0,110180.0,0.02850879]
[1762054065220,1.57294089,110190.0,110180.0,0.02850879]
[1762054065647,1.57294089,110190.0,110180.0,0.04224879]
[1762054065863,1.57294089,110190.0,110180.0,0.07643673]
[1762054067370,1.53675861,110190.0,110180.0,0.07643673]
[1762054067551,1.57294089,110190.0,110180.0,0.07643673]
[1762054069448,1.57294089,110190.0,110180.0,0.04224879]
[1762054070539,1.57009876,110190.0,110180.0,0.04224879]
[1762054070967,1.53391648,110190.0,110180.0,0.04224879]
[1762054071567,1.57009876,110190.0,110180.0,0.04224879]
[1762054078589,1.54281238,110190.0,110180.0,0.04224879]
[1762054081677,1.54281238,110190.0,110180.0,0.05828301]
[1762054083680,1.54281238,110190.0,110180.0,0.04454301]
[1762054083890,1.56528695,110190.0,110180.0,0.02850879]
[1762054084766,1.59257333,110190.0,110180.0,0.02850879]
[1762054087026,1.62066333,110190.0,110180.0,0.02850879]
[1762054095747,1.61782114,110190.0,110180.0,0.02850879]
[1762054095954,1.62066334,110190.0,110180.0,0.02850879]
[1762054096728,1.62065886,110190.0,110180.0,0.02850879]
[1762054103762,1.61781666,110190.0,110180.0,0.02850879]
[1762054103965,1.60221666,110190.0,110180.0,0.02850879]
[1762054104290,1.58258876,110190.0,110180.0,0.02850879]
[1762054104491,1.60221835,110190.0,110180.0,0.02850879]
[1762054105882,1.58258876,110190.0,110180.0,0.02850879]
[1762054119368,1.58260072,110190.0,110180.0,0.02850879]
[1762054119578,1.58260072,110190.0,110180.0,0.02828797]
[1762054120462,1.60223576,110190.0,110180.0,0.02828797]
[1762054122711,1.61824576,110190.0,110180.0,0.02828797]
[1762054124917,1.61824576,110190.0,110180.0,0.02850879]
[1762054133206,1.62108791,110190.0,110180.0,0.02850879]
[1762054151547,1.59380153,110190.0,110180.0,0.02850879]
[1762054153127,1.56530153,110190.0,110180.0,0.04224879]
[1762054155900,1.56530153,110190.0,110180.0,0.02850879]
[1762054167147,1.46530153,110190.0,110180.0,0.02850879]
[1762054170821,1.46530155,110190.0,110180.0,0.02850879]
[1762054172244,1.46245938,110190.0,110180.0,0.02850879]
[1762054172654,1.46530156,110190.0,110180.0,0.02850879]
[1762054174677,1.46245938,110190.0,110180.0,0.02850879]
[1762054181529,1.46245126,110190.0,110180.0,0.02850879]
[1762054184521,1.46529345,110190.0,110180.0,0.02850879]
[1762054187501,1.51464345,110190.0,110180.0,0.01476879]
[1762054187957,1.54192983,110190.0,110180.0,0.01476879]
[1762054190681,1.54192983,110190.0,110180.0,0.02850879]
[1762054192246,1.54192983,110190.0,110180.0,0.01476879]
[1762054194134,1.54192983,110190.0,110180.0,0.02850879]
[1762054194294,1.54192983,110190.0,110180.0,0.01476879]
[1762054198061,1.53908764,110190.0,110180.0,0.01476879]
[1762054198241,1.54192988,110190.0,110180.0,0.01476879]
[1762054200298,1.54192988,110190.0,110180.0,0.02850879]
[1762054202711,1.54192988,110190.0,110180.0,0.01476879]
[1762054203007,1.54192985,110190.0,110180.0,0.01476879]
[1762054204796,1.54064487,110190.0,110180.0,0.01476879]
[1762054205918,1.54064487,110190.0,110180.0,0.02850879]
[1762054206468,1.51807487,110190.0,110180.0,0.02850879]
[1762054208287,1.51807487,110190.0,110180.0,0.04181426]
[1762054209439,1.51807487,110190.0,110180.0,0.02850879]
[1762054214678,1.50300487,110190.0,110180.0,0.02850879]
[1762054217718,1.51910487,110190.0,110180.0,0.02850879]
[1762054226033,1.51910486,110190.0,110180.0,0.02850879]
[1762054226749,1.50300486,110190.0,110180.0,0.02850879]
[1762054227357,1.50300486,110190.0,110180.0,0.05996801]
[1762054228393,1.50300486,110190.0,110180.0,0.02850879]
[1762054230740,1.51912486,110190.0,110180.0,0.02850879]
[1762054231325,1.50300486,110190.0,110180.0,0.02850879]
[1762054232520,1.51912486,110190.0,110180.0,0.02850879]
[1762054233814,0.81870141,110190.0,110180.0,0.21002993]
[1762054234008,0.00038175,110190.0,110180.0,0.27200725]
[1762054234641,0.00038175,110190.0,110180.0,0.2992874]
[1762054234842,0.00038175,110190.0,110180.0,0.2962874]
[1762054235071,0.00038175,110190.0,110180.0,0.3052874]
[1762054236016,0.00038175,110190.0,110180.0,0.3042874]
[1762054236219,0.00038175,110190.0,110180.0,0.3082874]
[1762054239030,0.00038175,110190.0,110180.0,0.70066116]
[1762054240466,0.00038175,110190.0,110180.0,0.68766116]
[1762054240671,0.00038175,110190.0,110180.0,0.70166116]
[1762054240876,0.00038175,110190.0,110180.0,0.70866116]
[1762054243370,0.00038175,110190.0,110180.0,0.3162874]
[1762054261488,0.00038175,110190.0,110180.0,0.36537123]
[1762054271493,0.00038175,110190.0,110180.0,0.33809108]
[1762054271691,0.00038175,110190.0,110180.0,0.28985376]
[1762054271897,0.39248569,110190.0,110180.0,0.28985376]
[1762054272585,0.00038175,110190.0,110180.0,0.27585376]
[1762054272792,0.39248569,110190.0,110180.0,0.27585376]
[1762054272998,0.39248569,110190.0,110180.0,0.28185376]
[1762054272999,0.00038175,110190.0,110180.0,0.28185376]
[1762054273203,0.00038175,110190.0,110180.0,0.27485376]
[1762054273404,0.00038175,110190.0,110180.0,0.33911798]
[1762054273796,0.00038175,110190.0,110180.0,0.27785376]
[1762054274250,0.00038175,110190.0,110180.0,0.27185376]
[1762054274450,0.00038175,110190.0,110180.0,0.27785376]
[1762054277469,0.9660943,110190.0,110180.0,0.09633262]
[1762054277673,0.9660943,110190.0,110180.0,0.04724879]
[1762054277984,0.99337629,110190.0,110180.0,0.04724879]
[1762054278184,1.02955857,110190.0,110180.0,0.04724879]